[Event "Late-Titled-Tuesday-Blitz-July-09-2024"]
[Site "Chess.com"]
[Date "2024.07.09"]
[Round "7"]
[White "fugadelafuga"]
[Black "Bilan_Danila"]
[Result "1/2-1/2"]
[WhiteElo "2454"]
[BlackElo "2596"]
[TimeControl "180+1"]
[EndTime "15:16:38 PDT"]
[Termination "Game drawn by repetition"]

1. c4 {[%clk 0:03:00.9]} 1... c6 {[%clk 0:02:58.8]} 2. Nf3 {[%clk 0:02:56.4]}
2... d5 {[%clk 0:02:59.7]} 3. b3 {[%clk 0:02:56.3]} 3... Nf6 {[%clk 0:02:59.6]}
4. Bb2 {[%clk 0:02:55.9]} 4... Bf5 {[%clk 0:03:00.3]} 5. d3 {[%clk 0:02:54.3]}
5... e6 {[%clk 0:02:59.1]} 6. Nbd2 {[%clk 0:02:54.5]} 6... Nbd7 {[%clk
0:02:57.7]} 7. g3 {[%clk 0:02:51.2]} 7... Bc5 {[%clk 0:02:55.9]} 8. Bg2 {[%clk
0:02:50.1]} 8... h6 {[%clk 0:02:21.5]} 9. O-O {[%clk 0:02:48.5]} 9... O-O {[%clk
0:02:21.5]} 10. Ne5 {[%clk 0:02:41.6]} 10... a5 {[%clk 0:02:11.8]} 11. Nxd7
{[%clk 0:02:38]} 11... Nxd7 {[%clk 0:01:59.4]} 12. e4 {[%clk 0:02:30.7]} 12...
dxe4 {[%clk 0:01:54.8]} 13. Nxe4 {[%clk 0:02:29.5]} 13... Be7 {[%clk 0:01:50.4]}
14. Qe2 {[%clk 0:01:50.8]} 14... Nf6 {[%clk 0:01:42]} 15. Rad1 {[%clk
0:01:43.1]} 15... a4 {[%clk 0:01:40.6]} 16. Nxf6+ {[%clk 0:01:32.6]} 16... Bxf6
{[%clk 0:01:40.6]} 17. Bxf6 {[%clk 0:01:33.1]} 17... Qxf6 {[%clk 0:01:41.5]} 18.
b4 {[%clk 0:01:33.4]} 18... a3 {[%clk 0:01:25.9]} 19. d4 {[%clk 0:01:26.5]}
19... Rfd8 {[%clk 0:01:20.6]} 20. Qe3 {[%clk 0:01:25.4]} 20... Rd7 {[%clk
0:01:15.8]} 21. Rd2 {[%clk 0:01:22.6]} 21... Kh7 {[%clk 0:01:00.4]} 22. Rfd1
{[%clk 0:01:22]} 22... Rad8 {[%clk 0:00:59.5]} 23. Be4 {[%clk 0:01:08.6]} 23...
Bxe4 {[%clk 0:00:49.9]} 24. Qxe4+ {[%clk 0:01:09.5]} 24... g6 {[%clk 0:00:46.3]}
25. Kg2 {[%clk 0:00:56.6]} 25... Kg7 {[%clk 0:00:34.9]} 26. f4 {[%clk
0:00:52.9]} 26... b5 {[%clk 0:00:29.6]} 27. Qxc6 {[%clk 0:00:42.2]} 27... Rxd4
{[%clk 0:00:26.2]} 28. Rxd4 {[%clk 0:00:42.2]} 28... Rxd4 {[%clk 0:00:27.1]} 29.
Rxd4 {[%clk 0:00:42.5]} 29... Qxd4 {[%clk 0:00:28]} 30. cxb5 {[%clk 0:00:38.1]}
30... Qb2+ {[%clk 0:00:19.6]} 31. Kh3 {[%clk 0:00:37.8]} 31... Qxa2 {[%clk
0:00:20.1]} 32. Qc3+ {[%clk 0:00:31.5]} 32... Kg8 {[%clk 0:00:14.1]} 33. b6
{[%clk 0:00:31.6]} 33... Qb2 {[%clk 0:00:09.9]} 34. Qxb2 {[%clk 0:00:26.9]}
34... axb2 {[%clk 0:00:10.1]} 35. b7 {[%clk 0:00:27.3]} 35... b1=Q {[%clk
0:00:11]} 36. b8=Q+ {[%clk 0:00:26.7]} 36... Kh7 {[%clk 0:00:10.9]} 37. b5
{[%clk 0:00:18.3]} 37... Qf1+ {[%clk 0:00:11]} 38. Kh4 {[%clk 0:00:17.4]} 38...
Qe2 {[%clk 0:00:06.9]} 39. g4 {[%clk 0:00:15.2]} 39... Qf2+ {[%clk 0:00:05.6]}
40. Kh3 {[%clk 0:00:15.1]} 40... Qf1+ {[%clk 0:00:06.2]} 41. Kh4 {[%clk
0:00:14.3]} 41... Qf2+ {[%clk 0:00:06]} 42. Kh3 {[%clk 0:00:14.6]} 42... Qf3+
{[%clk 0:00:03.3]} 43. Kh4 {[%clk 0:00:14.3]} 43... Qf2+ {[%clk 0:00:03.2]}
1/2-1/2

[Event "Late-Titled-Tuesday-Blitz-July-09-2024"]
[Site "Chess.com"]
[Date "2024.07.09"]
[Round "7"]
[White "Redzishchess"]
[Black "nitpicker"]
[Result "1-0"]
[WhiteElo "2464"]
[BlackElo "2301"]
[TimeControl "180+1"]
[EndTime "15:16:41 PDT"]
[Termination "Redzishchess won on time"]

1. d4 {[%clk 0:03:00.9]} 1... Nf6 {[%clk 0:02:59.3]} 2. c4 {[%clk 0:03:01.8]}
2... e6 {[%clk 0:02:59.1]} 3. Nf3 {[%clk 0:03:01.5]} 3... d5 {[%clk 0:02:58.7]}
4. g3 {[%clk 0:03:01.6]} 4... Bb4+ {[%clk 0:02:57.4]} 5. Nbd2 {[%clk 0:03:01.4]}
5... Be7 {[%clk 0:02:56.5]} 6. Bg2 {[%clk 0:03:01.5]} 6... O-O {[%clk
0:02:55.1]} 7. O-O {[%clk 0:03:01.9]} 7... c6 {[%clk 0:02:54.6]} 8. Qc2 {[%clk
0:03:01.9]} 8... b6 {[%clk 0:02:54.6]} 9. e4 {[%clk 0:03:02.2]} 9... Bb7 {[%clk
0:02:53.6]} 10. e5 {[%clk 0:03:02]} 10... Ne8 {[%clk 0:02:53.7]} 11. Rd1 {[%clk
0:02:50.9]} 11... Nd7 {[%clk 0:02:53.3]} 12. h4 {[%clk 0:02:45.2]} 12... h6
{[%clk 0:02:49.9]} 13. cxd5 {[%clk 0:02:25.9]} 13... cxd5 {[%clk 0:02:49.1]} 14.
Nf1 {[%clk 0:02:26.5]} 14... Rc8 {[%clk 0:02:47.7]} 15. Qe2 {[%clk 0:02:20]}
15... Nc7 {[%clk 0:02:46.2]} 16. Ne3 {[%clk 0:02:19]} 16... Ba6 {[%clk
0:02:44.1]} 17. Qe1 {[%clk 0:02:13.2]} 17... Nb8 {[%clk 0:02:33.4]} 18. Bd2
{[%clk 0:02:06.1]} 18... Bd3 {[%clk 0:02:25.8]} 19. Ng4 {[%clk 0:01:56.1]} 19...
Bf5 {[%clk 0:01:44.6]} 20. Nfh2 {[%clk 0:01:46.3]} 20... Re8 {[%clk 0:01:34.6]}
21. Qe2 {[%clk 0:01:40.9]} 21... Nc6 {[%clk 0:01:30.4]} 22. Bxh6 {[%clk
0:01:30.8]} 22... gxh6 {[%clk 0:01:20.1]} 23. Nxh6+ {[%clk 0:01:31.7]} 23... Kg7
{[%clk 0:01:18.5]} 24. Nxf5+ {[%clk 0:01:23]} 24... exf5 {[%clk 0:01:19.4]} 25.
Qc2 {[%clk 0:01:10.5]} 25... Nb5 {[%clk 0:01:06.5]} 26. Qxf5 {[%clk 0:01:09.4]}
26... Rg8 {[%clk 0:00:50.4]} 27. a4 {[%clk 0:00:36.5]} 27... Nbxd4 {[%clk
0:00:45.8]} 28. Rxd4 {[%clk 0:00:35.9]} 28... Nxd4 {[%clk 0:00:45]} 29. Qg4+
{[%clk 0:00:36.8]} 29... Kf8 {[%clk 0:00:44.7]} 30. Qxd4 {[%clk 0:00:37.7]}
30... Rxg3 {[%clk 0:00:43]} 31. e6 {[%clk 0:00:22.8]} 31... f6 {[%clk
0:00:25.1]} 32. Rd1 {[%clk 0:00:14.9]} 32... Rg8 {[%clk 0:00:16.4]} 33. Qf4
{[%clk 0:00:12.3]} 33... Qd6 {[%clk 0:00:14.4]} 34. Qh6+ {[%clk 0:00:12.5]}
34... Ke8 {[%clk 0:00:14.2]} 35. Qh5+ {[%clk 0:00:10.6]} 35... Kd8 {[%clk
0:00:13.2]} 36. Rxd5 {[%clk 0:00:10.9]} 36... Rxg2+ {[%clk 0:00:10.2]} 37. Kxg2
{[%clk 0:00:10.3]} 37... Rc5 {[%clk 0:00:01.4]} 38. Rxd6+ {[%clk 0:00:10.1]}
38... Bxd6 {[%clk 0:00:02.3]} 39. Qh8+ {[%clk 0:00:08.1]} 39... Ke7 {[%clk
0:00:01.9]} 40. Nf3 {[%clk 0:00:05.6]} 40... Kxe6 {[%clk 0:00:01.6]} 41. Qe8+
{[%clk 0:00:05.3]} 41... Kd5 {[%clk 0:00:01.5]} 42. h5 {[%clk 0:00:05.8]} 1-0

[Event "Late-Titled-Tuesday-Blitz-July-09-2024"]
[Site "Chess.com"]
[Date "2024.07.09"]
[Round "7"]
[White "rionelG"]
[Black "ernestina08chess"]
[Result "1-0"]
[WhiteElo "2413"]
[BlackElo "2289"]
[TimeControl "180+1"]
[EndTime "15:16:42 PDT"]
[Termination "rionelG won by resignation"]

1. e4 {[%clk 0:03:00.9]} 1... g6 {[%clk 0:02:59.3]} 2. d4 {[%clk 0:02:59.2]}
2... Bg7 {[%clk 0:02:59.9]} 3. c3 {[%clk 0:02:59.6]} 3... d6 {[%clk 0:02:59.3]}
4. h3 {[%clk 0:02:57.4]} 4... c6 {[%clk 0:02:59.4]} 5. Bd3 {[%clk 0:02:57.3]}
5... b5 {[%clk 0:02:59.8]} 6. Nf3 {[%clk 0:02:56.3]} 6... Nf6 {[%clk 0:03:00]}
7. O-O {[%clk 0:02:56]} 7... Nbd7 {[%clk 0:03:00.4]} 8. Re1 {[%clk 0:02:55.7]}
8... O-O {[%clk 0:02:57.6]} 9. a4 {[%clk 0:02:41.6]} 9... bxa4 {[%clk
0:02:52.9]} 10. Rxa4 {[%clk 0:02:20.6]} 10... Bb7 {[%clk 0:02:50.9]} 11. e5
{[%clk 0:02:12.8]} 11... Nd5 {[%clk 0:02:41.9]} 12. e6 {[%clk 0:02:04.4]} 12...
fxe6 {[%clk 0:02:38.7]} 13. Ng5 {[%clk 0:02:04.2]} 13... Rf6 {[%clk 0:02:14.8]}
14. Nxe6 {[%clk 0:02:01.1]} 14... Qc8 {[%clk 0:02:11.8]} 15. Bg5 {[%clk
0:01:50.2]} 15... Rf7 {[%clk 0:02:11.5]} 16. Ra1 {[%clk 0:01:30.6]} 16... N5f6
{[%clk 0:02:09.7]} 17. Bc4 {[%clk 0:01:24.6]} 17... d5 {[%clk 0:02:09.5]} 18.
Bd3 {[%clk 0:01:24.2]} 18... c5 {[%clk 0:02:06.5]} 19. Nd2 {[%clk 0:01:20.8]}
19... c4 {[%clk 0:01:55.6]} 20. Bc2 {[%clk 0:01:18.7]} 20... Nf8 {[%clk
0:01:56.1]} 21. Nxf8 {[%clk 0:01:11.3]} 21... Qxf8 {[%clk 0:01:55.6]} 22. Nf3
{[%clk 0:01:11.3]} 22... Nd7 {[%clk 0:01:50.2]} 23. Qe2 {[%clk 0:01:07.9]} 23...
Bf6 {[%clk 0:01:49.2]} 24. Bd2 {[%clk 0:01:05]} 24... a6 {[%clk 0:01:39.9]} 25.
b3 {[%clk 0:01:05]} 25... cxb3 {[%clk 0:01:37.6]} 26. Bxb3 {[%clk 0:01:04.6]}
26... Kh8 {[%clk 0:01:31.4]} 27. Qe6 {[%clk 0:01:02]} 27... Rd8 {[%clk
0:01:13.5]} 28. Rab1 {[%clk 0:00:48.3]} 28... Bc8 {[%clk 0:01:08.8]} 29. Qe2
{[%clk 0:00:41.7]} 29... Nb6 {[%clk 0:00:59.6]} 30. Ne5 {[%clk 0:00:34.6]} 30...
Bxe5 {[%clk 0:00:47.1]} 31. dxe5 {[%clk 0:00:35.5]} 31... e6 {[%clk 0:00:45.7]}
32. Bg5 {[%clk 0:00:33.7]} 32... Rdd7 {[%clk 0:00:45.1]} 33. Bf6+ {[%clk
0:00:33.1]} 33... Kg8 {[%clk 0:00:42.5]} 34. Bc2 {[%clk 0:00:31.5]} 34... Nc4
{[%clk 0:00:37.3]} 35. Rb8 {[%clk 0:00:31.5]} 35... Rb7 {[%clk 0:00:34.1]} 36.
Ra8 {[%clk 0:00:29.5]} 36... Ra7 {[%clk 0:00:31.6]} 37. Rb8 {[%clk 0:00:26.1]}
37... Rab7 {[%clk 0:00:31.4]} 38. Rb1 {[%clk 0:00:22.5]} 38... Rxb1+ {[%clk
0:00:26.4]} 39. Bxb1 {[%clk 0:00:22.4]} 39... Rb7 {[%clk 0:00:24.1]} 40. Rxb7
{[%clk 0:00:20.5]} 40... Bxb7 {[%clk 0:00:25]} 41. Bd3 {[%clk 0:00:18.8]} 41...
Qc8 {[%clk 0:00:18.6]} 42. Qg4 {[%clk 0:00:15.9]} 42... a5 {[%clk 0:00:14]} 43.
Bxg6 {[%clk 0:00:15.8]} 43... Qd7 {[%clk 0:00:09]} 44. Be8+ {[%clk 0:00:14.9]}
44... Kf8 {[%clk 0:00:08.4]} 45. Bxd7 {[%clk 0:00:14.7]} 1-0

[Event "Late-Titled-Tuesday-Blitz-July-09-2024"]
[Site "Chess.com"]
[Date "2024.07.09"]
[Round "7"]
[White "prxcess_brownie"]
[Black "Good_Knight_Kiss"]
[Result "0-1"]
[WhiteElo "2228"]
[BlackElo "2392"]
[TimeControl "180+1"]
[EndTime "15:16:42 PDT"]
[Termination "Good_Knight_Kiss won by checkmate"]

1. c4 {[%clk 0:03:00.9]} 1... Nf6 {[%clk 0:02:57.5]} 2. Nc3 {[%clk 0:03:00.7]}
2... g6 {[%clk 0:02:56.6]} 3. e4 {[%clk 0:02:59.4]} 3... d6 {[%clk 0:02:56.1]}
4. d4 {[%clk 0:02:59.1]} 4... Bg7 {[%clk 0:02:56.7]} 5. Nf3 {[%clk 0:02:59.1]}
5... O-O {[%clk 0:02:56.8]} 6. Be2 {[%clk 0:02:59.5]} 6... e5 {[%clk 0:02:56.2]}
7. O-O {[%clk 0:02:59.8]} 7... Nc6 {[%clk 0:02:56.3]} 8. d5 {[%clk 0:02:59.5]}
8... Ne7 {[%clk 0:02:57]} 9. Ne1 {[%clk 0:02:59.4]} 9... Nd7 {[%clk 0:02:57.2]}
10. Be3 {[%clk 0:02:59.4]} 10... f5 {[%clk 0:02:57.6]} 11. f3 {[%clk 0:02:59.6]}
11... f4 {[%clk 0:02:58.2]} 12. Bf2 {[%clk 0:03:00]} 12... g5 {[%clk 0:02:58.8]}
13. Nd3 {[%clk 0:02:52.2]} 13... Nf6 {[%clk 0:02:12]} 14. a4 {[%clk 0:02:36.5]}
14... a5 {[%clk 0:02:10.5]} 15. c5 {[%clk 0:02:20.8]} 15... h5 {[%clk
0:02:06.9]} 16. cxd6 {[%clk 0:02:18.4]} 16... cxd6 {[%clk 0:02:07.8]} 17. b4
{[%clk 0:02:12.7]} 17... axb4 {[%clk 0:02:02.3]} 18. Nb5 {[%clk 0:02:10.8]}
18... Ng6 {[%clk 0:01:56.1]} 19. Rc1 {[%clk 0:02:01.4]} 19... Rf7 {[%clk
0:01:51.1]} 20. Nxb4 {[%clk 0:01:21.6]} 20... g4 {[%clk 0:01:41.9]} 21. Qc2
{[%clk 0:01:12.4]} 21... g3 {[%clk 0:01:34.3]} 22. hxg3 {[%clk 0:01:10.9]} 22...
fxg3 {[%clk 0:01:35.2]} 23. Bxg3 {[%clk 0:01:10.8]} 23... Bh6 {[%clk 0:01:31.7]}
24. Nc7 {[%clk 0:00:52.5]} 24... Bxc1 {[%clk 0:01:15.3]} 25. Rxc1 {[%clk
0:00:53.4]} 25... Rb8 {[%clk 0:01:00.5]} 26. Bf2 {[%clk 0:00:49.3]} 26... Nf4
{[%clk 0:00:51.5]} 27. Ba7 {[%clk 0:00:35]} 27... Nxe2+ {[%clk 0:00:37]} 28.
Qxe2 {[%clk 0:00:33.4]} 28... Rxc7 {[%clk 0:00:37]} 29. Rb1 {[%clk 0:00:16.7]}
29... Ra8 {[%clk 0:00:33.8]} 30. Bb6 {[%clk 0:00:16.9]} 30... Rc1+ {[%clk
0:00:27.8]} 31. Rxc1 {[%clk 0:00:15.8]} 31... Qxb6+ {[%clk 0:00:27.8]} 32. Qf2
{[%clk 0:00:13.3]} 32... Qxb4 {[%clk 0:00:25.8]} 33. Qg3+ {[%clk 0:00:13.3]}
33... Kf7 {[%clk 0:00:25.6]} 34. Rc7+ {[%clk 0:00:11.4]} 34... Bd7 {[%clk
0:00:22.4]} 35. Qh3 {[%clk 0:00:09.4]} 35... Qxa4 {[%clk 0:00:16.3]} 36. Qe6+
{[%clk 0:00:08.4]} 36... Kg6 {[%clk 0:00:14.6]} 37. Qxd6 {[%clk 0:00:06.5]}
37... Qd1+ {[%clk 0:00:12]} 38. Kh2 {[%clk 0:00:05.3]} 38... Ra1 {[%clk
0:00:10.9]} 39. Qxe5 {[%clk 0:00:02.6]} 39... Qg1+ {[%clk 0:00:07.1]} 40. Kg3
{[%clk 0:00:02.6]} 40... Qe1+ {[%clk 0:00:07.2]} 41. Kh2 {[%clk 0:00:02.1]}
41... Qh4# {[%clk 0:00:05.4]} 0-1

[Event "Late-Titled-Tuesday-Blitz-July-09-2024"]
[Site "Chess.com"]
[Date "2024.07.09"]
[Round "7"]
[White "MKlose11"]
[Black "Kirill_Klukin"]
[Result "0-1"]
[WhiteElo "2661"]
[BlackElo "2922"]
[TimeControl "180+1"]
[EndTime "15:16:43 PDT"]
[Termination "Kirill_Klukin won by resignation"]

1. e4 {[%clk 0:02:57.3]} 1... c5 {[%clk 0:02:59.8]} 2. Nc3 {[%clk 0:02:57.1]}
2... Nc6 {[%clk 0:02:59.8]} 3. g3 {[%clk 0:02:58]} 3... g6 {[%clk 0:02:59.8]} 4.
Bg2 {[%clk 0:02:50.1]} 4... Bg7 {[%clk 0:02:59.5]} 5. d3 {[%clk 0:02:49.3]} 5...
e6 {[%clk 0:02:59.3]} 6. Be3 {[%clk 0:02:48.3]} 6... b6 {[%clk 0:02:53.5]} 7.
Qd2 {[%clk 0:02:47.5]} 7... h5 {[%clk 0:02:51.8]} 8. h3 {[%clk 0:02:47]} 8...
Nge7 {[%clk 0:02:52]} 9. Nge2 {[%clk 0:02:46.9]} 9... Nd4 {[%clk 0:02:48]} 10.
O-O {[%clk 0:02:43.5]} 10... Nec6 {[%clk 0:02:42.5]} 11. f4 {[%clk 0:02:42.9]}
11... d6 {[%clk 0:02:41]} 12. Nc1 {[%clk 0:02:39.3]} 12... O-O {[%clk
0:02:38.6]} 13. Nd1 {[%clk 0:02:39.4]} 13... Ne7 {[%clk 0:02:30.8]} 14. f5
{[%clk 0:02:37.1]} 14... exf5 {[%clk 0:02:26.7]} 15. exf5 {[%clk 0:02:36.9]}
15... Bxf5 {[%clk 0:02:27.5]} 16. c3 {[%clk 0:02:29.4]} 16... Ndc6 {[%clk
0:02:24.5]} 17. Rxf5 {[%clk 0:02:28.4]} 17... gxf5 {[%clk 0:02:17.2]} 18. Ne2
{[%clk 0:02:26.4]} 18... Rc8 {[%clk 0:02:04.3]} 19. Nf4 {[%clk 0:02:20.5]} 19...
Ng6 {[%clk 0:02:04.1]} 20. Nxh5 {[%clk 0:02:20]} 20... Re8 {[%clk 0:02:03.1]}
21. Bg5 {[%clk 0:02:17.3]} 21... Qd7 {[%clk 0:01:44.3]} 22. Bf6 {[%clk
0:02:07.5]} 22... Bf8 {[%clk 0:01:35]} 23. Bd4 {[%clk 0:02:00.5]} 23... Re6
{[%clk 0:01:08.6]} 24. Nf6+ {[%clk 0:01:55.5]} 24... Rxf6 {[%clk 0:01:08.9]} 25.
Bxf6 {[%clk 0:01:56.4]} 25... Bg7 {[%clk 0:01:08.1]} 26. Bxg7 {[%clk 0:01:54.9]}
26... Kxg7 {[%clk 0:01:09]} 27. Ne3 {[%clk 0:01:53]} 27... Nce7 {[%clk
0:00:41.6]} 28. Rf1 {[%clk 0:01:51.6]} 28... Rh8 {[%clk 0:00:42.3]} 29. Qf2
{[%clk 0:01:44.6]} 29... d5 {[%clk 0:00:24.5]} 30. Nxf5+ {[%clk 0:01:39]} 30...
Nxf5 {[%clk 0:00:25.4]} 31. Qxf5 {[%clk 0:01:39.2]} 31... Qxf5 {[%clk
0:00:26.3]} 32. Rxf5 {[%clk 0:01:39.4]} 32... Ne7 {[%clk 0:00:27.2]} 33. Re5
{[%clk 0:01:33.7]} 33... Kf6 {[%clk 0:00:27.1]} 34. Re2 {[%clk 0:01:32]} 34...
Rd8 {[%clk 0:00:27.5]} 35. Kf2 {[%clk 0:01:29.9]} 35... d4 {[%clk 0:00:27.7]}
36. c4 {[%clk 0:01:30.1]} 36... Nf5 {[%clk 0:00:28]} 37. Be4 {[%clk 0:01:27.5]}
37... Ne3 {[%clk 0:00:28.3]} 38. Kf3 {[%clk 0:01:18.1]} 38... Ke5 {[%clk
0:00:28.6]} 39. g4 {[%clk 0:01:16.9]} 39... Rh8 {[%clk 0:00:27.8]} 40. Rh2
{[%clk 0:01:15.7]} 40... Nf1 {[%clk 0:00:23.8]} 41. Rh1 {[%clk 0:01:13.5]} 41...
Nd2+ {[%clk 0:00:24]} 42. Kg3 {[%clk 0:01:11.4]} 42... Nxe4+ {[%clk 0:00:23.9]}
43. dxe4 {[%clk 0:01:10.3]} 43... Kxe4 {[%clk 0:00:24.8]} 44. Re1+ {[%clk
0:01:06.1]} 44... Kd3 {[%clk 0:00:25.1]} 45. Re7 {[%clk 0:01:00.2]} 45... Kxc4
{[%clk 0:00:15]} 46. Rxf7 {[%clk 0:01:00.1]} 46... Rd8 {[%clk 0:00:15.8]} 47.
Kf2 {[%clk 0:00:55.7]} 47... Kd3 {[%clk 0:00:16]} 48. g5 {[%clk 0:00:49.7]}
48... Kc2 {[%clk 0:00:15.6]} 49. g6 {[%clk 0:00:46.9]} 49... d3 {[%clk
0:00:16.1]} 50. g7 {[%clk 0:00:47.5]} 50... Rg8 {[%clk 0:00:13.3]} 51. Rd7
{[%clk 0:00:44.3]} 51... c4 {[%clk 0:00:13.4]} 52. h4 {[%clk 0:00:43.3]} 52...
d2 {[%clk 0:00:04.5]} 53. h5 {[%clk 0:00:39.8]} 53... Rxg7 {[%clk 0:00:04]} 54.
Rxg7 {[%clk 0:00:39.2]} 54... d1=Q {[%clk 0:00:04.3]} 55. h6 {[%clk 0:00:38.8]}
55... Qd2+ {[%clk 0:00:04.8]} 56. Kf3 {[%clk 0:00:38.9]} 56... Qxh6 {[%clk
0:00:05.7]} 57. Rg2+ {[%clk 0:00:39]} 57... Kd3 {[%clk 0:00:06.2]} 0-1

[Event "Late-Titled-Tuesday-Blitz-July-09-2024"]
[Site "Chess.com"]
[Date "2024.07.09"]
[Round "7"]
[White "merinasian"]
[Black "hakanazeri2"]
[Result "1-0"]
[WhiteElo "2468"]
[BlackElo "2673"]
[TimeControl "180+1"]
[EndTime "15:16:43 PDT"]
[Termination "merinasian won by resignation"]

1. d4 {[%clk 0:02:53.1]} 1... Nf6 {[%clk 0:02:57.3]} 2. Nf3 {[%clk 0:02:52.8]}
2... d5 {[%clk 0:02:55.2]} 3. Bf4 {[%clk 0:02:52.3]} 3... c5 {[%clk 0:02:54.2]}
4. e3 {[%clk 0:02:52.4]} 4... Nc6 {[%clk 0:02:54.7]} 5. dxc5 {[%clk 0:02:46.5]}
5... e6 {[%clk 0:02:53]} 6. c4 {[%clk 0:02:37.9]} 6... Bxc5 {[%clk 0:02:51.8]}
7. Be2 {[%clk 0:02:32.9]} 7... d4 {[%clk 0:02:48]} 8. exd4 {[%clk 0:02:31.5]}
8... Nxd4 {[%clk 0:02:48.3]} 9. Nxd4 {[%clk 0:02:31.1]} 9... Qxd4 {[%clk
0:02:47]} 10. Qxd4 {[%clk 0:02:27.7]} 10... Bxd4 {[%clk 0:02:47.9]} 11. Nc3
{[%clk 0:02:27.9]} 11... Bxc3+ {[%clk 0:02:47]} 12. bxc3 {[%clk 0:02:27.7]}
12... Bd7 {[%clk 0:02:47.9]} 13. Bd6 {[%clk 0:02:16.4]} 13... Bc6 {[%clk
0:02:48.8]} 14. O-O {[%clk 0:02:16.1]} 14... Ne4 {[%clk 0:02:47]} 15. Ba3 {[%clk
0:02:10]} 15... Nxc3 {[%clk 0:02:43.7]} 16. Bd3 {[%clk 0:02:04.2]} 16... O-O-O
{[%clk 0:02:43.1]} 17. Bc2 {[%clk 0:02:01.7]} 17... Rd2 {[%clk 0:02:42.6]} 18.
Bb3 {[%clk 0:02:01.4]} 18... a5 {[%clk 0:02:38.8]} 19. Rfe1 {[%clk 0:01:33.2]}
19... b6 {[%clk 0:02:03.5]} 20. Kf1 {[%clk 0:01:29.4]} 20... Rhd8 {[%clk
0:02:00.9]} 21. Bc1 {[%clk 0:01:29.2]} 21... R2d3 {[%clk 0:01:53.8]} 22. Bc2
{[%clk 0:01:24.8]} 22... R3d4 {[%clk 0:01:53.6]} 23. Be3 {[%clk 0:01:14.5]}
23... Rh4 {[%clk 0:01:28.8]} 24. h3 {[%clk 0:01:07.6]} 24... Ba4 {[%clk
0:01:23.3]} 25. Bxa4 {[%clk 0:00:57.5]} 25... Nxa4 {[%clk 0:01:22.8]} 26. Bg5
{[%clk 0:00:57.6]} 26... Rxc4 {[%clk 0:01:14.5]} 27. Bxd8 {[%clk 0:00:51.2]}
27... Kxd8 {[%clk 0:01:15.4]} 28. Red1+ {[%clk 0:00:50.7]} 28... Kc7 {[%clk
0:00:59.9]} 29. Rac1 {[%clk 0:00:50.6]} 29... Rxc1 {[%clk 0:01:00.5]} 30. Rxc1+
{[%clk 0:00:50.7]} 30... Nc5 {[%clk 0:01:01.2]} 31. Ke2 {[%clk 0:00:49.8]} 31...
Kc6 {[%clk 0:01:01.9]} 32. Ke3 {[%clk 0:00:47.2]} 32... f6 {[%clk 0:00:54.2]}
33. f4 {[%clk 0:00:46.4]} 33... e5 {[%clk 0:00:48.5]} 34. f5 {[%clk 0:00:40.2]}
34... b5 {[%clk 0:00:46.2]} 35. g4 {[%clk 0:00:38.6]} 35... b4 {[%clk
0:00:39.1]} 36. h4 {[%clk 0:00:33.1]} 36... a4 {[%clk 0:00:36.2]} 37. g5 {[%clk
0:00:28.1]} 37... Kb5 {[%clk 0:00:29.9]} 38. h5 {[%clk 0:00:27.7]} 38... h6
{[%clk 0:00:26.8]} 39. gxh6 {[%clk 0:00:23.7]} 39... gxh6 {[%clk 0:00:27.7]} 40.
Rg1 {[%clk 0:00:22.1]} 40... a3 {[%clk 0:00:24.5]} 41. Kd2 {[%clk 0:00:20.4]}
41... b3 {[%clk 0:00:22.1]} 42. axb3 {[%clk 0:00:20]} 42... Kb4 {[%clk
0:00:16.5]} 43. Kc2 {[%clk 0:00:19.2]} 43... Nxb3 {[%clk 0:00:09.8]} 44. Rb1
{[%clk 0:00:18.2]} 44... a2 {[%clk 0:00:08.8]} 45. Rxb3+ {[%clk 0:00:16.8]}
45... Ka4 {[%clk 0:00:09.4]} 46. Rb8 {[%clk 0:00:16.8]} 46... a1=Q {[%clk
0:00:06.6]} 47. Ra8+ {[%clk 0:00:16.4]} 1-0

[Event "Late-Titled-Tuesday-Blitz-July-09-2024"]
[Site "Chess.com"]
[Date "2024.07.09"]
[Round "7"]
[White "OverallStranger"]
[Black "FuenfgegenWilly"]
[Result "1-0"]
[WhiteElo "2410"]
[BlackElo "2532"]
[TimeControl "180+1"]
[EndTime "15:16:43 PDT"]
[Termination "OverallStranger won on time"]

1. e4 {[%clk 0:03:00.9]} 1... c5 {[%clk 0:02:52]} 2. Nc3 {[%clk 0:03:01.1]} 2...
a6 {[%clk 0:02:51.5]} 3. g3 {[%clk 0:03:00.9]} 3... b5 {[%clk 0:02:50.9]} 4. Bg2
{[%clk 0:03:01.1]} 4... Bb7 {[%clk 0:02:51.8]} 5. d3 {[%clk 0:03:01.4]} 5... e6
{[%clk 0:02:52.7]} 6. Nh3 {[%clk 0:03:01.6]} 6... b4 {[%clk 0:02:48.7]} 7. Ne2
{[%clk 0:02:59.1]} 7... Nf6 {[%clk 0:02:49.2]} 8. O-O {[%clk 0:02:58.9]} 8...
Be7 {[%clk 0:02:49.6]} 9. f4 {[%clk 0:02:40.2]} 9... Qb6 {[%clk 0:02:46.8]} 10.
Kh1 {[%clk 0:02:39]} 10... Nc6 {[%clk 0:02:41.7]} 11. Be3 {[%clk 0:02:38.9]}
11... Rc8 {[%clk 0:02:40.6]} 12. Bg1 {[%clk 0:02:25.9]} 12... a5 {[%clk
0:02:37.2]} 13. a4 {[%clk 0:02:21.8]} 13... bxa3 {[%clk 0:02:34.9]} 14. bxa3
{[%clk 0:02:22.2]} 14... O-O {[%clk 0:02:30.6]} 15. Nc1 {[%clk 0:02:19.5]} 15...
Ba6 {[%clk 0:02:21.9]} 16. Nb3 {[%clk 0:02:19.3]} 16... a4 {[%clk 0:02:20.8]}
17. Nd2 {[%clk 0:02:19.5]} 17... Na5 {[%clk 0:02:16.1]} 18. g4 {[%clk
0:02:16.5]} 18... Qc7 {[%clk 0:02:09.3]} 19. g5 {[%clk 0:02:14.6]} 19... Ne8
{[%clk 0:02:08.1]} 20. c4 {[%clk 0:02:13.6]} 20... Rb8 {[%clk 0:01:47.4]} 21.
Qxa4 {[%clk 0:02:11.5]} 21... Rb2 {[%clk 0:01:46.9]} 22. Qd1 {[%clk 0:02:04.3]}
22... f6 {[%clk 0:01:27.4]} 23. Qc1 {[%clk 0:01:46.8]} 23... Qb8 {[%clk
0:01:22.9]} 24. Rb1 {[%clk 0:01:42.5]} 24... Rxb1 {[%clk 0:01:21.1]} 25. Qxb1
{[%clk 0:01:43.4]} 25... Qc7 {[%clk 0:01:08.7]} 26. gxf6 {[%clk 0:01:28.4]}
26... Nxf6 {[%clk 0:01:06.1]} 27. e5 {[%clk 0:01:27.4]} 27... Ng4 {[%clk
0:01:06]} 28. Qd1 {[%clk 0:01:21.9]} 28... Nh6 {[%clk 0:01:04.2]} 29. Ne4 {[%clk
0:01:14.3]} 29... Bb7 {[%clk 0:01:01.4]} 30. Nhg5 {[%clk 0:01:05.2]} 30... Nf5
{[%clk 0:00:55.8]} 31. Qh5 {[%clk 0:00:56.9]} 31... h6 {[%clk 0:00:55.2]} 32.
Nf3 {[%clk 0:00:54.3]} 32... Nb3 {[%clk 0:00:54.4]} 33. Rb1 {[%clk 0:00:50.6]}
33... Nbd4 {[%clk 0:00:49.5]} 34. Nxd4 {[%clk 0:00:50.7]} 34... Bxe4 {[%clk
0:00:39.4]} 35. Bxe4 {[%clk 0:00:46.8]} 35... cxd4 {[%clk 0:00:36.5]} 36. Qg6
{[%clk 0:00:36.2]} 36... Bxa3 {[%clk 0:00:23.6]} 37. Rb7 {[%clk 0:00:36]} 37...
Qd8 {[%clk 0:00:18]} 38. Bxd4 {[%clk 0:00:31.1]} 38... Bc1 {[%clk 0:00:10]} 39.
Bc5 {[%clk 0:00:20.8]} 39... Rf7 {[%clk 0:00:08.7]} 40. Bd6 {[%clk 0:00:18.4]}
40... Nxd6 {[%clk 0:00:05.2]} 41. Qh7+ {[%clk 0:00:17.2]} 41... Kf8 {[%clk
0:00:05.3]} 42. Qh8+ {[%clk 0:00:16.9]} 42... Ke7 {[%clk 0:00:01.9]} 43. exd6+
{[%clk 0:00:17.3]} 43... Kxd6 {[%clk 0:00:01]} 44. Qxd8 {[%clk 0:00:17.4]} 44...
Rxf4 {[%clk 0:00:01]} 45. Qxd7+ {[%clk 0:00:15.7]} 45... Ke5 {[%clk 0:00:01.1]}
46. Rb5+ {[%clk 0:00:15.7]} 46... Kf6 {[%clk 0:00:01.5]} 47. Qd8+ {[%clk
0:00:15.4]} 1-0